Workbook

Sheet Relatório Liquidação
X1: -4.183675628e-11
E2: CRI Resort do Lago IV - Mapa de Liquidação
B7: Natureza do Pagamento | C7: Série | D7: Data | E7: PU Liquidação | F7: Quantidade | G7: Lançamento | H7: Razão Social | I7: CNPJ | J7: Número | K7: Banco | L7: Agência | M7: Conta | N7: ISS | O7: Valor do Serviço | P7: Gross-Up | Q7: Valor Bruto NF | R7: Retenção NF | S7: Retenção | T7: Valor | U7: Observação | V7: Enviado para pagamento
B8: Integralização | C8: 535 | D8: 2021-04-30 | E8: 1000 | F8: 23400 | G8: Integralização | T8: =E8*F8 -> 23400000 | W8: SIM
B9: Integralização | C9: 536 | D9: 2021-04-30 | E9: 1001.209691 | F9: 12600 | G9: Integralização | T9: =E9*F9 -> 12615242.11 | W9: SIM (PAGO)
B10: Integralização | C10: 0 | D10: 2021-04-30 | E10: 0 | F10: 0 | G10: Integralização | T10: 0
B11: Integralização | C11: 0 | D11: 2021-04-30 | E11: 0 | F11: 0 | G11: Integralização | T11: 0
B12: Integralização | C12: 0 | D12: 2021-04-30 | E12: 0 | F12: 0 | G12: Integralização | T12: 0
B13: Integralização | C13: 0 | D13: 2021-04-30 | E13: 0 | F13: 0 | G13: Integralização | T13: 0
B14: Integralização | C14: Total Dia | G14: Total Integralização | T14: =SUM(T8:T13) -> 36015242.11 | W14: SIM (PAGO PARCIALMENTE - Saldo restante: Valor)
B15: Transferência | G15: Fee Estruturação | H15: FORTE SECURITIZACAO E PARTICIPACOES LTDA | I15: 21.567.223/0001-05 | J15: 341 | K15: Itaú Unibanco S.A. | L15: 0869-8 | M15: 12663-1 | N15: N/A | O15: 0 | P15: 0.1115 | Q15: =O15/(1-P15) -> 0 | R15: 0.0615 | S15: =R15*Q15 -> 0 | T15: =Q15*(1-R15) -> 0
B16: Transferência | G16: Taxa de Sucesso | H16: FORTE SECURITIZACAO E PARTICIPACOES LTDA | I16: 21.567.223/0001-05 | J16: 341 | K16: Itaú Unibanco S.A. | L16: 0869-8 | M16: 12663-1 | N16: N/A | O16: 0 | P16: 0.1115 | Q16: =O16/(1-P16) -> 0 | R16: 0.0615 | S16: =R16*Q16 -> 0 | T16: =Q16*(1-R16) -> 0
B17: Transferência | G17: Comissão Firme | H17: FORTE SECURITIZACAO E PARTICIPACOES LTDA | I17: 21.567.223/0001-05 | J17: 341 | K17: Itaú Unibanco S.A. | L17: 0869-8 | M17: 12663-1 | N17: N/A | O17: 0 | P17: 0.1115 | Q17: 0 | R17: 0.0615 | S17: 0 | T17: 0
B18: Transferência | G18: Originador | H18: - | I18: - | L18: - | M18: - | O18: 0 | P18: 0 | Q18: 0 | R18: 0 | S18: 0 | T18: 0
B19: Aguardar Transferência | G19: Advogados - Terceiros | O19: 0 | P19: 0 | Q19: 0 | R19: 0 | S19: 0 | T19: 0
B20: Aguardar Transferência | G20: Companhia Hipotecária | H20: COMPANHIA HIPOTECÁRIA PIRATINI | I20: 18.282.093/0001-50 | J20: 237 | K20: Banco Bradesco S.A. | L20: 3145 | M20: 21476-0 | N20: N/A | O20: 0 | P20: 0.0965 | Q20: 0 | R20: 0.0615 | S20: 0 | T20: 0
B21: Aguardar Transferência | G21: Advogados - Assessoria | H21: Daló e Tognotti Sociedade de Advogados | I21: 34.712.837/0001-85 | J21: 341 | K21: Itaú Unibanco S.A. | L21: 3100 | M21: 35517-5 | N21: N/A | O21: 58000 | P21: 0 | Q21: 58000 | R21: 0.0615 | S21: 3567 | T21: 54433 | V21: SIM
B22: Aguardar Transferência | G22: Coordenador Líder | H22: TERRA INVESTIMENTOS DTVM LTDA. | I22: 03.751.794/0001-13 | J22: 237 | K22: Banco Bradesco S.A. | L22: 560 | M22: 0156021-2 | N22: N/A | O22: 22888 | P22: 0.0965 | Q22: 25332.59546 | R22: 0 | S22: 0 | T22: 25332.59546 | V22: SIM
B23: Aguardar Transferência | G23: Engenharia | H23: HARCA ENGENHARIA EIRELI - ME | I23: 20.620.442/0001-48 | J23: 003 | K23: Caixa Econômica Federal | L23: 1959 | M23: 00000620-5 | N23: SIM | O23: 5000 | P23: 0 | Q23: 5000 | R23: 0 | S23: 0 | T23: 5000
B24: Aguardar Transferência | G24: Auditoria Complementar | H24: CONVESTE AUDFILES SERVICOS FINANCEIROS LTDA | I24: 29.758.816/0001-60 | J24: 341 | K24: Itaú Unibanco S.A. | L24: 6630 | M24: 43542-5 | N24: N/A | O24: 0 | P24: 0.1115 | Q24: 0 | R24: 0.0615 | S24: 0 | T24: 0
B25: Aguardar Transferência | G25: Auditoria Financeira | H25: CONVESTE AUDFILES SERVICOS FINANCEIROS LTDA | I25: 29.758.816/0001-60 | J25: 341 | K25: Itaú Unibanco S.A. | L25: 6630 | M25: 43542-5 | N25: N/A | O25: 0 | P25: 0.1115 | Q25: 0 | R25: 0.0615 | S25: 0 | T25: 0
B26: Aguardar Transferência | G26: Implantação | H26: CONVESTE AUDFILES SERVICOS FINANCEIROS LTDA | I26: 29.758.816/0001-60 | J26: 341 | K26: Itaú Unibanco S.A. | L26: 6630 | M26: 43542-5 | N26: N/A | O26: 44190 | P26: 0.1115 | Q26: 49735.50929 | R26: 0.0615 | S26: 3058.733821 | T26: 46676.77546 | V26: SIM
B27: Aguardar Transferência | G27: Agente Fiduciário | H27: SIMPLIFIC PAVARINI DISTRIBUIDORA DE TÍTULOS E VALORES MOBILIÁRIOS LTDA. | I27: 15.227.994/0001-50 | J27: 237 | K27: Banco Bradesco S.A. | L27: 3428-2 | M27: 714.443-1 | N27: N/A | O27: 18000 | P27: 0.0965 | Q27: 19922.52352 | R27: 0.0615 | S27: 1225.235196 | T27: 18697.28832 | V27: SIM
B28: Aguardar Transferência | G28: Agente Custodiante | H28: SIMPLIFIC PAVARINI DISTRIBUIDORA DE TÍTULOS E VALORES MOBILIÁRIOS LTDA. | I28: 15.227.994/0001-50 | J28: 237 | K28: Banco Bradesco S.A. | L28: 3428-2 | M28: 714.443-1 | N28: N/A | O28: 3500 | P28: 0.0965 | Q28: 3873.824018 | R28: 0.0615 | S28: 238.2401771 | T28: 3635.583841 | V28: SIM
B29: Aguardar Transferência | G29: Agente Registrador CCI | H29: SIMPLIFIC PAVARINI DISTRIBUIDORA DE TÍTULOS E VALORES MOBILIÁRIOS LTDA. | I29: 15.227.994/0001-50 | J29: 237 | K29: Banco Bradesco S.A. | L29: 3428-2 | M29: 714.443-1 | N29: N/A | O29: 142200 | P29: 0.0965 | Q29: 157387.9358 | R29: 0.0615 | S29: 9679.358052 | T29: 147708.5778 | V29: SIM
B30: Aguardar Transferência | G30: Despachante | H30: Duudocs Serviços Administrativos Ltda | I30: 32.437.359/0001-17 | J30: 341 | K30: Itaú Unibanco S.A. | L30: 0350 | M30: 32511-4 | N30: N/A | O30: 0 | P30: 0 | Q30: 0 | R30: 0 | S30: 0 | T30: 0
B31: Provisão de Despesas | G31: Registro CCI B3 (Débito Automático) | H31: Forte Securitizadora S/A | I31: 12.979.898/0001-70 | S31: =+R31*Q31 -> 0 | T31: 0
B32: Provisão de Despesas | G32: Registro CRI B3 (Débito Automático) | H32: Forte Securitizadora S/A | I32: 12.979.898/0001-70 | S32: 0 | T32: 21873
B33: Provisão de Despesas | G33: Custos Mov. CRI/CCI B3 (Estimado-Deb. Aut.) | H33: Forte Securitizadora S/A | I33: 12.979.898/0001-70 | S33: 0 | T33: 0
B34: Provisão de Despesas | G34: Análise B3 | H34: Forte Securitizadora S/A | I34: 12.979.898/0001-70 | S34: =+R34*Q34 -> 0 | T34: 0
B35: Provisão de Despesas | G35: Taxa de Registro - Anbima | H35: Forte Securitizadora S/A | I35: 12.979.898/0001-70 | S35: =+R35*Q35 -> 0 | T35: 3136
B36: Provisão de Despesas | G36: Rating | H36: Forte Securitizadora S/A | I36: 12.979.898/0001-70 | S36: =+R36*Q36 -> 0 | T36: ='[2]Criar Mapa'!K25 -> 23450
B37: Provisão de Despesas | G37: IOF | H37: Forte Securitizadora S/A | I37: 12.979.898/0001-70 | S37: =+R37*Q37 -> 0 | T37: ='[2]Criar Mapa'!K26 -> 0
B38: Provisão de Despesas | G38: Provisão Diversa - Advogado | O38: 0 | P38: 0 | Q38: =O38/(1-P38) -> 0 | R38: 0 | S38: =R38*Q38 -> 0 | T38: =Q38*(1-R38) -> 0
G39: Retenção de Impostos sobre NFs | T39: =SUM(T40:T49) -> 17768.56725
B40: Retenção de Impostos | G40: Imposto - TForte Participação Ltda | H40: TForte Participação Ltda | I40: 21.567.223/0001-05 | T40: =SUMIF($I$15:$I$38,I40,$S$15:$S$38) -> 0
B41: Retenção de Impostos | G41: Imposto - Originador | H41: - | I41: - | T41: =SUMIF($I$15:$I$38,I41,$S$15:$S$38) -> 0
B42: Retenção de Impostos | G42: Imposto - Assessor Legal Terceiros | T42: 0
B43: Retenção de Impostos | G43: Imposto - Companhia Hipotecária | H43: COMPANHIA HIPOTECÁRIA PIRATINI | I43: 18.282.093/0001-50 | T43: =SUMIF($I$15:$I$38,I43,$S$15:$S$38) -> 0
B44: Retenção de Impostos | G44: Imposto - Assessor Legal | H44: Daló e Tognotti Sociedade de Advogados | I44: 34.712.837/0001-85 | T44: =SUMIF($I$15:$I$38,I44,$S$15:$S$38) -> 3567
B45: Retenção de Impostos | G45: Imposto - Coordenador Líder | H45: TERRA INVESTIMENTOS DTVM LTDA. | I45: 03.751.794/0001-13 | T45: 0
B46: Retenção de Impostos | G46: Imposto - Engenharia | H46: HARCA ENGENHARIA EIRELI - ME | I46: 20.620.442/0001-48 | T46: 0
B47: Retenção de Impostos | G47: Imposto - Auditoria | H47: CONVESTE AUDFILES SERVICOS FINANCEIROS LTDA | I47: 29.758.816/0001-60 | T47: 3058.733821
B48: Retenção de Impostos | G48: Imposto - Agente Fiduciário | H48: SIMPLIFIC PAVARINI DISTRIBUIDORA DE TÍTULOS E VALORES MOBILIÁRIOS LTDA. | I48: 15.227.994/0001-50 | T48: 11142.83343 | Y48: Integralização
B49: Retenção de Impostos | G49: Imposto - Agente Custodiante | H49: - | I49: - | T49: 0 | Y49: Integralização
B50: Transferência | G50: Reembolso Despesas | H50: Forte Securitizadora S/A | I50: 12.979.898/0001-70 | J50: 341 | K50: Itaú Unibanco S.A. | L50: 0869 | M50: 13447-8 | T50: 0
B51: Transferência | G51: Retenção de PMT | H51: Forte Securitizadora S/A | I51: 12.979.898/0001-70 | J51: 341 | K51: Itaú Unibanco S.A. | L51: 0869 | M51: 13674-7 | T51: 0 | U51: 592721.77
B52: Transferência | G52: Quitação de Dividas | H52: Forte Securitizadora S/A | I52: 12.979.898/0001-70 | J52: 341 | K52: Itaú Unibanco S.A. | L52: 0869 | M52: 13674-7 | T52: 0 | U52: 0
B53: Transferência | G53: Fundo de Juros | H53: Forte Securitizadora S/A | I53: 12.979.898/0001-70 | J53: 341 | K53: Itaú Unibanco S.A. | L53: 0869 | M53: 13674-7 | T53: 0 | U53: 0
B54: Transferência | G54: Fundo de Concessão | H54: Forte Securitizadora S/A | I54: 12.979.898/0001-70 | J54: 341 | K54: Itaú Unibanco S.A. | L54: 0869 | M54: 13674-7 | T54: 0 | U54: 0
B55: Transferência | G55: Fundo de Despesa | H55: Forte Securitizadora S/A | I55: 12.979.898/0001-70 | J55: 341 | K55: Itaú Unibanco S.A. | L55: 0869 | M55: 13674-7 | T55: 0 | U55: 0
B56: Transferência | G56: Fundo de Reserva | H56: Forte Securitizadora S/A | I56: 12.979.898/0001-70 | J56: 341 | K56: Itaú Unibanco S.A. | L56: 0869 | M56: 13674-7 | T56: 467530.7218 | U56: 1191677.98
B57: Transferência | G57: Fundo de Obra | H57: Forte Securitizadora S/A | I57: 12.979.898/0001-70 | J57: 341 | K57: Itaú Unibanco S.A. | L57: 0869 | M57: 13674-7 | T57: 0 | U57: 16914202.08
B58: Transferência | G58: Fundo Diverso 1 | H58: Forte Securitizadora S/A | I58: 12.979.898/0001-70 | J58: 341 | K58: Itaú Unibanco S.A. | L58: 0869 | M58: 13674-7 | T58: ='[2]Criar Mapa'!K36 -> 0
B59: Transferência | G59: Fundo Diverso 2 | H59: Forte Securitizadora S/A | I59: 12.979.898/0001-70 | J59: 341 | K59: Itaú Unibanco S.A. | L59: 0869 | M59: 13674-7 | T59: ='[2]Criar Mapa'!K37 -> 0
B60: Aguardar Transferência | G60: Livre Destinação | H60: S.P.E. RESORT DO LAGO CALDAS NOVAS LTDA. | I60: 20.269.496/0001-00 | J60: 237 | K60: Banco Bradesco S.A. | L60: 3684 | M60: 2339-6 | T60: 13647765.82
B61: Transferência | G61: Livre Destinação | H61: S.P.E. RESORT DO LAGO CALDAS NOVAS LTDA. | I61: 20.269.496/0001-00 | J61: 237 | K61: Banco Bradesco S.A. | L61: 3684 | M61: 2339-6 | T61: 21532234.18
B62: Total Dia | T62: =-SUM(-T14,T15:T39,T50:T61) -> 0 | Y62: Reembolso Forte
B64: Integralização | C64: 535 | D64: 2021-05-03 | E64: 1000.824775 | F64: 13325 | G64: Integralização | T64: =E64*F64 -> 13335990.13
B65: Integralização | C65: 536 | D65: 2021-05-03 | E65: 1015.550105 | F65: 3500 | G65: Integralização | T65: =E65*F65 -> 3554425.369
B66: Integralização | C66: Total Dia | G66: Total Integralização | T66: =SUM(T64:T65) -> 16890415.5
B67: Transferência | G67: Fee Estruturação | H67: FORTE SECURITIZACAO E PARTICIPACOES LTDA | I67: 21.567.223/0001-05 | J67: 341 | K67: Itaú Unibanco S.A. | L67: 0869-8 | M67: 12663-1 | N67: N/A | O67: =(1%*T66)+(1%*T14) -> 529056.5761 | P67: 0.1115 | Q67: =O67/(1-P67) -> 595449.1571 | R67: 0.0615 | S67: =R67*Q67 -> 36620.12316 | T67: =Q67*(1-R67) -> 558829.0339
B68: Transferência | G68: Taxa de Sucesso | H68: FORTE SECURITIZACAO E PARTICIPACOES LTDA | I68: 21.567.223/0001-05 | J68: 341 | K68: Itaú Unibanco S.A. | L68: 0869-8 | M68: 12663-1 | N68: N/A | O68: =(1%*T66)+(1%*T14) -> 529056.5761 | P68: 0.1115 | Q68: =O68/(1-P68) -> 595449.1571 | R68: 0.0615 | S68: =R68*Q68 -> 36620.12316 | T68: =Q68*(1-R68) -> 558829.0339
G69: Retenção de Impostos sobre NFs | T69: =SUM(T70:T70) -> 73240.24632
B70: Retenção de Impostos | G70: Imposto - TForte Participação Ltda | H70: TForte Participação Ltda | I70: 21.567.223/0001-05 | T70: =SUMIF($I$67:$I$68,I70,$S$67:$S$68) -> 73240.24632
B71: Transferência | G71: Retenção de PMT | H71: Forte Securitizadora S/A | I71: 12.979.898/0001-70 | J71: 341 | K71: Itaú Unibanco S.A. | L71: 0869 | M71: 13674-7 | T71: =U51-T51+U71 -> 865325.5 | U71: 272603.73
B72: Transferência | G72: Fundo de Reserva | H72: Forte Securitizadora S/A | I72: 12.979.898/0001-70 | J72: 341 | K72: Itaú Unibanco S.A. | L72: 0869 | M72: 13674-7 | T72: =U56-T56+U72 -> 1272224.488 | U72: 548077.23
B73: Transferência | G73: Fundo de Obra | H73: Forte Securitizadora S/A | I73: 12.979.898/0001-70 | J73: 341 | K73: Itaú Unibanco S.A. | L73: 0869 | M73: 13674-7 | T73: 13561967.2
B74: Transferência | G74: Livre Destinação | H74: S.P.E. RESORT DO LAGO CALDAS NOVAS LTDA. | I74: 20.269.496/0001-00 | J74: 237 | K74: Banco Bradesco S.A. | L74: 3684 | M74: 2339-6 | T74: =-SUM(-T66,T67:T69,T71:T73) -> 0
B75: Total Dia | T75: =-SUM(-T66,T67:T69,T71:T74) -> 0 | Y75: Reembolso Forte
B77: Integralização | C77: 536 | D77: 2021-05-04 | E77: 1001.923396 | F77: 3675 | G77: Integralização | T77: =E77*F77 -> 3682068.479
B78: Integralização | C78: Total Dia | G78: Total Integralização | T78: =SUM(T77:T77) -> 3682068.479
B79: Transferência | G79: Fee Estruturação | H79: FORTE SECURITIZACAO E PARTICIPACOES LTDA | I79: 21.567.223/0001-05 | J79: 341 | K79: Itaú Unibanco S.A. | L79: 0869-8 | M79: 12663-1 | N79: N/A | O79: =1%*T78 -> 36820.68479 | P79: 0.1115 | Q79: =O79/(1-P79) -> 41441.401 | R79: 0.0615 | S79: =R79*Q79 -> 2548.646162 | T79: =Q79*(1-R79) -> 38892.75484
B80: Transferência | G80: Taxa de Sucesso | H80: FORTE SECURITIZACAO E PARTICIPACOES LTDA | I80: 21.567.223/0001-05 | J80: 341 | K80: Itaú Unibanco S.A. | L80: 0869-8 | M80: 12663-1 | N80: N/A | O80: =1%*T78 -> 36820.68479 | P80: 0.1115 | Q80: =O80/(1-P80) -> 41441.401 | R80: 0.0615 | S80: =R80*Q80 -> 2548.646162 | T80: =Q80*(1-R80) -> 38892.75484
G81: Retenção de Impostos sobre NFs | T81: =SUM(T82:T82) -> 5097.292323 | Y81: Reembolso Forte
B82: Retenção de Impostos | G82: Imposto - TForte Participação Ltda | H82: TForte Participação Ltda | I82: 21.567.223/0001-05 | T82: =SUMIF($I$79:$I$80,I82,$S$79:$S$80) -> 5097.292323
B83: Transferência | G83: Retenção de PMT | H83: Forte Securitizadora S/A | I83: 12.979.898/0001-70 | J83: 341 | K83: Itaú Unibanco S.A. | L83: 0869 | M83: 13674-7 | T83: 64918.39
B84: Transferência | G84: Fundo de Reserva | H84: Forte Securitizadora S/A | I84: 12.979.898/0001-70 | J84: 341 | K84: Itaú Unibanco S.A. | L84: 0869 | M84: 13674-7 | T84: 130517.18
B85: Transferência | G85: Fundo de Obra | H85: Forte Securitizadora S/A | I85: 12.979.898/0001-70 | J85: 341 | K85: Itaú Unibanco S.A. | L85: 0869 | M85: 13674-7 | T85: 3403750.107
B86: Transferência | G86: Livre Destinação | H86: S.P.E. RESORT DO LAGO CALDAS NOVAS LTDA. | I86: 20.269.496/0001-00 | J86: 237 | K86: Banco Bradesco S.A. | L86: 3684 | M86: 2339-6 | T86: =-SUM(-T78,T79:T81,T83:T85) -> 0
B87: Total Dia | T87: =-SUM(-T78,T79:T81,T83:T86) -> 0
T94: Check Impostos | U94: =ROUND(T39,2)=ROUND(SUM(S14:S62),2) -> TRUE
T96: 0
H101: Forte Securitizadora S.A.
